fUST/lending_fUST_20240901
["ID","MTS","AMOUNT","RATE_DAILY","PERIOD"]
[336822809,1725192564205,-500.0,0.00025545,2]
[336822810,1725192564228,-500.0,0.00025545,2]
[336822811,1725192564251,-500.0,0.00025546,2]
[336822812,1725192564274,-500.0,0.00025546,2]
[336822813,1725192564297,-500.0,0.00025546,2]
[336822814,1725192564319,-500.0,0.00025546,2]
[336822815,1725192564342,-500.0,0.00025546,2]
[336822816,1725192564364,-500.0,0.00025546,2]
[336822817,1725192564387,-500.0,0.00025546,2]
[336822818,1725192564409,-500.0,0.00025546,2]
[336822819,1725192564432,-500.0,0.00025546,2]
[336822820,1725192564455,-519.70414707,0.00025546,2]
[336822821,1725192564478,-500.0,0.00025546,2]
[336822822,1725192564500,-500.0,0.00025546,2]
[336822823,1725192564525,-546.9798973,0.00025546,2]
[336822824,1725192564547,-502.67013471,0.00025546,2]
[336822825,1725192564573,-500.0,0.00025546,2]
[336822826,1725192564602,-500.0,0.00025546,2]
[336822827,1725192564626,-549.21595315,0.00025546,2]
[336822828,1725192564651,-500.0,0.00025546,2]
[336822829,1725192564675,-500.0,0.00025546,2]
[336822830,1725192564699,-500.0,0.00025546,2]
[336822831,1725192564723,-500.0,0.00025546,2]
[336822832,1725192564747,-501.77892621,0.00025546,2]
[336822833,1725192564770,-500.0,0.00025546,2]
[336822834,1725192564792,-603.8133327,0.00025546,2]
[336822835,1725192564814,-503.59389083,0.00025546,2]
[336822836,1725192564837,-503.6591506,0.00025546,2]
[336822837,1725192564860,-222.42400606,0.00025546,2]
[336822838,1725192564882,-507.52296583,0.00025546,2]
[336822839,1725192564904,-506.58361876,0.00025546,2]
[336822840,1725192564927,-500.0,0.00025546,2]
[336822841,1725192564948,-509.7008296,0.00025546,2]
[336822842,1725192564973,-500.0,0.00025546,2]
[336822843,1725192564994,-500.0,0.00025546,2]
[336822844,1725192565018,-500.0,0.00025546,2]
[336822845,1725192565040,-500.0,0.00025546,2]
[336822846,1725192565062,-503.55227813,0.00025546,2]
[336822847,1725192565084,-500.0,0.00025546,2]
[336822848,1725192565107,-500.0,0.00025546,2]
[336822849,1725192565128,-500.0,0.00025546,2]
[336822850,1725192565151,-500.0,0.00025546,2]
[336822851,1725192565173,-736.33,0.00025546,2]
[336822852,1725192565195,-508.93432346,0.00025546,2]
[336822853,1725192565217,-500.0,0.00025546,2]
[336822854,1725192565240,-642.51149288,0.00025546,2]
[336822855,1725192565262,-500.0,0.00025546,2]
[336822856,1725192565289,-500.0,0.00025546,2]
[336822857,1725192565311,-500.0,0.00025546,2]
[336822858,1725192565333,-500.0,0.00025546,2]
[336822859,1725192565355,-500.0,0.00025546,2]
[336822860,1725192565377,-500.0,0.00025546,2]
[336822861,1725192565399,-500.0,0.00025546,2]
[336822862,1725192565429,-500.0,0.00025546,2]
[336822863,1725192565452,-506.44536455,0.00025546,2]
[336822864,1725192565474,-500.0,0.00025546,2]
[336822865,1725192565496,-524.17276754,0.00025546,2]
[336822866,1725192565520,-500.0,0.00025546,2]
[336822867,1725192565543,-506.87810962,0.00025546,2]
[336822868,1725192565570,-622.79,0.00025546,2]
[336822869,1725192565593,-500.0,0.00025546,2]
[336822870,1725192565621,-500.0,0.00025546,2]
[336822871,1725192565645,-500.0,0.00025546,2]
[336822872,1725192565667,-503.37685167,0.00025546,2]
[336822873,1725192565688,-859.61,0.00025546,2]
[336822874,1725192565708,-831.63,0.00025546,2]
[336822875,1725192565731,-500.0,0.00025546,2]
[336822876,1725192565752,-503.73279641,0.00025546,2]
[336822877,1725192565774,-500.0,0.00025546,2]
[336822878,1725192565795,-500.0,0.00025546,2]
[336822879,1725192565817,-500.0,0.00025546,2]
[336822880,1725192565840,-681.9,0.00025546,2]
[336822881,1725192565863,-502.43955749,0.00025546,2]
[336822882,1725192565887,-500.0,0.00025546,2]
[336822883,1725192565911,-500.0,0.00025546,2]
[336822884,1725192565935,-500.0,0.00025546,2]
[336822885,1725192565958,-503.85607641,0.00025546,2]
[336822886,1725192565983,-500.0,0.00025546,2]
[336822887,1725192566008,-501.25193342,0.00025546,2]
[336822888,1725192566033,-503.63402825,0.00025546,2]
[336822889,1725192566058,-152.64989956,0.00025546,2]
[336822890,1725192567208,-500.0,0.00025269,2]
[336822891,1725192567233,-500.0,0.00025269,2]
[336822892,1725192567256,-524.33,0.0002527,2]
[336822893,1725192567287,-500.0,0.0002527,2]
[336822894,1725192567308,-500.0,0.00025543,2]
[336822895,1725192567329,-500.0,0.00025543,2]
[336822896,1725192567352,-347.35010044,0.00025546,2]
[336822897,1725192567375,-500.0,0.00025546,2]
[336822898,1725192567399,-500.0,0.00025546,2]
[336822899,1725192567423,-500.0,0.00025546,2]
[336822900,1725192567444,-500.0,0.00025546,2]
[336822901,1725192567468,-500.0,0.00025546,2]
[336822902,1725192567488,-508.84601125,0.00025546,2]
[336822903,1725192567509,-500.0,0.00025546,2]
[336822904,1725192567532,-500.0,0.00025546,2]
[336822905,1725192567555,-500.0,0.00025546,2]
[336822906,1725192567577,-1070.57,0.00025546,2]
[336822907,1725192567598,-500.0,0.00025546,2]
[336822908,1725192567619,-500.0,0.00025546,2]
[336822909,1725192567641,-500.0,0.00025546,2]
[336822910,1725192567663,-500.0,0.00025546,2]
[336822911,1725192567683,-500.0,0.00025546,2]
[336822912,1725192567702,-500.0,0.00025546,2]
[336822913,1725192567724,-512.79541857,0.00025546,2]
[336822914,1725192567745,-535.02036924,0.00025546,2]
[336822915,1725192567768,-500.0,0.00025546,2]
[336822916,1725192567789,-500.0,0.00025546,2]
[336822917,1725192567809,-500.0,0.00025546,2]
[336822918,1725192567829,-630.93079459,0.00025546,2]
[336822919,1725192567853,-500.0,0.00025546,2]
[336822920,1725192567873,-550.01,0.00025546,2]
[336822921,1725192567894,-500.0,0.00025546,2]
[336822922,1725192567915,-500.0,0.00025546,2]
[336822923,1725192567936,-594.2,0.00025546,2]
[336822924,1725192567956,-500.0,0.00025546,2]
[336822925,1725192567977,-664.69,0.00025546,2]
[336822926,1725192567997,-500.0,0.00025546,2]
[336822927,1725192568018,-509.60475999,0.00025546,2]
[336822928,1725192568045,-420.25974606,0.00025546,2]
[336822929,1725192568065,-500.0,0.00025546,2]
[336822930,1725192568086,-500.0,0.00025546,2]
[336822931,1725192568107,-500.0,0.00025546,2]
[336822932,1725192568128,-500.0,0.00025546,2]
[336822933,1725192568149,-500.0,0.00025546,2]
[336822934,1725192568169,-500.0,0.00025546,2]
[336822935,1725192568190,-500.0,0.00025546,2]
[336822936,1725192568212,-500.0,0.00025547,2]
[336822937,1725192568235,-500.0,0.00025547,2]
[336822938,1725192568260,-500.0,0.00025547,2]
[336822939,1725192568282,-500.0,0.00025547,2]
[336822940,1725192568302,-789.57,0.00025547,2]
[336822941,1725192568323,-500.0,0.00025547,2]
[336822942,1725192568345,-500.0,0.00025547,2]
[336822943,1725192568366,-157.251294,0.00025627,2]
[336822944,1725192568388,-157.251294,0.00025712,2]
[336822945,1725192568409,-605.35198673,0.0002572,2]
[336822946,1725192568431,-8078.33957086,0.00025807,3]
[336822947,1725192568455,-454.12,0.00025808,2]
[336822948,1725192568477,-8078.33957086,0.00025808,3]
[336822949,1725192568502,-8078.33957086,0.00025809,3]
[336822950,1725192568528,-8078.33957086,0.0002581,3]
[336822951,1725192568552,-2132.33,0.00025816,2]
[336822952,1725192568581,-500.0,0.00025816,2]
[336822953,1725192568605,-500.0,0.00025816,2]
[336822954,1725192568629,-500.0,0.00025816,2]
[336822955,1725192568657,-500.0,0.00025817,2]
[336822956,1725192568679,-500.0,0.00025817,2]
[336822957,1725192568701,-500.0,0.00025817,2]
[336822958,1725192568724,-2191.27,0.00025817,2]
[336822959,1725192568744,-1692.33,0.00025817,2]
[336822960,1725192568767,-1383.39,0.00025817,2]
[336822961,1725192568789,-514.75,0.00025817,2]
[336822962,1725192568811,-500.0,0.00025817,2]
[336822963,1725192568837,-1372.45,0.00025817,2]
[336822964,1725192568860,-649.86,0.00025817,2]
[336822965,1725192568883,-2082.74,0.00025817,2]
[336822966,1725192568906,-500.0,0.00025817,2]
[336822967,1725192568928,-12586.71,0.00025817,2]
[336822968,1725192568950,-2887.41,0.00025817,2]
[336822969,1725192568971,-689.77,0.00025817,2]
[336822970,1725192568993,-3325.33,0.00025817,2]
[336822971,1725192569014,-1584.26,0.00025817,2]
[336822972,1725192569035,-500.0,0.00025817,2]
[336822973,1725192569058,-604.73,0.00025817,2]
[336822974,1725192569080,-1027.88,0.00025817,2]
[336822975,1725192569103,-500.0,0.00025817,2]
[336822976,1725192569124,-1132.07,0.00025817,2]
[336822977,1725192569144,-509.52,0.00025817,2]
[336822978,1725192569164,-500.0,0.00025817,2]
[336822979,1725192569184,-500.0,0.00025817,2]
[336822980,1725192569206,-500.0,0.00025817,2]
[336822981,1725192569229,-500.0,0.00025818,2]
[336822982,1725192569254,-500.0,0.00025818,2]
[336822983,1725192569279,-393.92074169,0.00025818,2]
[336822984,1725192570128,-500.0,0.00025268,2]
[336822985,1725192570151,-500.0,0.00025268,2]
[336822986,1725192570171,-566.48,0.00025542,2]
[336822987,1725192570192,-500.0,0.00025542,2]
[336822988,1725192570213,-500.0,0.00025546,2]
[336822989,1725192570233,-106.07925831,0.00025818,2]
[336822990,1725192570254,-981.83,0.00025818,2]
[336822991,1725192570276,-500.0,0.00025818,2]
[336822992,1725192570303,-500.0,0.00025818,2]
[336822993,1725192570328,-550.78,0.00025818,2]
[336822994,1725192570351,-500.0,0.00025818,2]
[336822995,1725192570374,-502.98476496,0.00025818,2]
[336822996,1725192570394,-500.0,0.00025818,2]
[336822997,1725192570414,-740.94,0.00025818,2]
[336822998,1725192570436,-500.0,0.00025818,2]
[336822999,1725192570458,-500.0,0.00025818,2]
[336823000,1725192570479,-500.0,0.00025818,2]
[336823001,1725192570503,-885.34,0.00025818,2]
[336823002,1725192570526,-500.0,0.00025818,2]
[336823003,1725192570548,-500.0,0.00025818,2]
[336823004,1725192570574,-500.0,0.00025818,2]
[336823005,1725192570595,-658.94,0.00025818,2]
[336823006,1725192570615,-500.0,0.00025818,2]
[336823007,1725192570636,-500.0,0.00025818,2]
[336823008,1725192570658,-1872.71,0.00025818,2]
[336823009,1725192570678,-500.0,0.00025818,2]
[336823010,1725192570698,-500.0,0.00025818,2]
[336823011,1725192570719,-1123.43,0.00025818,2]
[336823012,1725192570740,-570.52,0.00025818,2]
[336823013,1725192570760,-500.0,0.00025818,2]
[336823014,1725192570941,-500.0,0.00025818,2]
[336823015,1725192570964,-502.06,0.00025818,2]
[336823016,1725192570986,-653.77,0.00025818,2]
[336823017,1725192571007,-500.0,0.00025818,2]
[336823018,1725192571027,-247.36398954,0.00025818,2]
[336823019,1725192571050,-500.0,0.00025818,2]
[336823020,1725192571073,-1340.91,0.00025818,2]
[336823021,1725192571094,-1136.27,0.00025818,2]
[336823022,1725192571114,-525.9372745,0.00025818,2]
[336823023,1725192571134,-500.0,0.00025818,2]
[336823024,1725192571155,-500.0,0.00025818,2]
[336823025,1725192571176,-500.0,0.00025818,2]
[336823026,1725192571199,-3161.41,0.00025818,2]
[336823027,1725192571221,-500.0,0.00025818,2]
[336823028,1725192571242,-500.0,0.00025818,2]
[336823029,1725192571264,-500.0,0.00025818,2]
[336823030,1725192571286,-500.0,0.00025818,2]
[336823031,1725192571306,-500.0,0.00025818,2]
[336823032,1725192571327,-163.07998954,0.00025818,2]
[336823033,1725192571348,-500.0,0.00025818,2]
[336823034,1725192571371,-500.0,0.00025818,2]
[336823035,1725192571392,-526.73,0.00025818,2]
[336823036,1725192571412,-500.0,0.00025818,2]
[336823037,1725192571432,-500.0,0.00025818,2]
[336823038,1725192571452,-504.4673534,0.00025818,2]
[336823039,1725192571473,-1089.79,0.00025818,2]
[336823040,1725192571495,-500.0,0.00025818,2]
[336823041,1725192571517,-500.0,0.00025818,2]
[336823042,1725192571539,-590.52,0.00025818,2]
[336823043,1725192571563,-500.0,0.00025818,2]
[336823044,1725192571587,-588.48,0.00025818,2]
[336823045,1725192571611,-1007.91,0.00025818,2]
[336823046,1725192571635,-1497.44,0.00025818,2]
[336823047,1725192571657,-500.0,0.00025818,2]
[336823048,1725192571678,-2694.9,0.00025818,2]
[336823049,1725192571701,-6376.52,0.00025818,2]
[336823050,1725192571723,-500.0,0.00025818,2]
[336823051,1725192571744,-574.38,0.00025818,2]
[336823052,1725192571767,-559.85,0.00025818,2]
[336823053,1725192571790,-1097.2,0.00025818,2]
[336823054,1725192571810,-500.0,0.00025819,2]
[336823055,1725192571831,-620.27,0.00025819,2]
[336823056,1725192571854,-782.08,0.00025819,2]
[336823057,1725192571875,-610.98,0.00025819,2]
[336823058,1725192571896,-500.0,0.00025819,2]
[336823059,1725192571917,-500.0,0.00025819,2]
[336823060,1725192571937,-500.0,0.00025819,2]
[336823061,1725192571957,-500.0,0.00025819,2]
[336823062,1725192571976,-622.73,0.00025819,2]
[336823063,1725192571996,-742.03,0.00025819,2]
[336823064,1725192572017,-500.0,0.00025819,2]
[336823065,1725192572038,-500.0,0.00025819,2]
[336823066,1725192572063,-500.0,0.00025819,2]
[336823067,1725192572084,-500.0,0.00025819,2]
[336823068,1725192572105,-500.0,0.00025819,2]
[336823069,1725192572125,-204.4196225,0.00025819,2]
[336823070,1725192572146,-500.0,0.00025819,2]
[336823071,1725192572167,-500.0,0.00025819,2]
[336823072,1725192572189,-500.0,0.00025819,2]
[336823073,1725192572210,-899.31,0.00025819,2]
[336823074,1725192572232,-500.0,0.00025819,2]
[336823075,1725192572256,-2416.89,0.00025819,2]
[336823076,1725192572277,-500.0,0.00025819,2]
[336823077,1725192572298,-500.0,0.00025819,2]
[336823078,1725192572321,-500.0,0.00025819,2]
[336823079,1725192572345,-500.0,0.00025819,2]
[336823080,1725192572366,-500.0,0.00025819,2]
[336823081,1725192572386,-1489.35,0.00025819,2]
[336823082,1725192572407,-775.25,0.00025819,2]
[336823083,1725192572428,-774.78,0.00025819,2]
[336823084,1725192572449,-500.0,0.00025819,2]
[336823085,1725192572471,-500.0,0.00025819,2]
[336823086,1725192572492,-650.15,0.00025819,2]
[336823087,1725192572512,-823.45,0.00025819,2]
[336823088,1725192572533,-500.0,0.00025819,2]
[336823089,1725192572556,-638.47,0.00025819,2]
[336823090,1725192572577,-1562.51,0.00025819,2]
[336823091,1725192572598,-548.87,0.00025819,2]
[336823092,1725192572623,-567.23,0.00025819,2]
[336823093,1725192572651,-500.0,0.00025819,2]
[336823094,1725192572672,-1007.33,0.00025819,2]
[336823095,1725192572696,-640.88,0.00025819,2]
[336823096,1725192572717,-915.62,0.00025819,2]
[336823097,1725192572738,-500.0,0.00025819,2]
[336823098,1725192572759,-500.0,0.0002582,2]
[336823099,1725192572780,-500.0,0.0002582,2]
[336823100,1725192572801,-500.0,0.0002582,2]
[336823101,1725192572821,-500.0,0.0002582,2]
[336823102,1725192572841,-500.0,0.0002582,2]
[336823103,1725192572863,-500.0,0.0002582,2]
[336823104,1725192572885,-500.0,0.0002582,2]
[336823105,1725192572907,-500.0,0.0002582,2]
[336823106,1725192572937,-500.0,0.0002582,2]
[336823107,1725192572960,-500.0,0.0002582,2]
[336823108,1725192572981,-500.0,0.0002582,2]
[336823109,1725192573002,-500.0,0.0002582,2]
[336823110,1725192573024,-736.33,0.0002582,2]
[336823111,1725192573047,-500.0,0.0002582,2]
[336823112,1725192573069,-500.0,0.0002582,2]
[336823113,1725192573090,-478.15681711,0.0002582,2]
[336823114,1725192573113,-500.0,0.0002582,2]
[336823115,1725192573134,-500.0,0.0002582,2]
[336823116,1725192573156,-622.79,0.0002582,2]
[336823117,1725192573177,-500.0,0.0002582,2]
[336823118,1725192573199,-500.0,0.0002582,2]
[336823119,1725192573221,-859.61,0.0002582,2]
[336823120,1725192573242,-831.63,0.0002582,2]
[336823121,1725192573264,-500.0,0.0002582,2]
[336823122,1725192573285,-681.9,0.0002582,2]
[336823123,1725192573305,-500.0,0.0002582,2]
[336823124,1725192573327,-300.22618233,0.0002582,2]
[336823125,1725192573348,-500.0,0.0002582,2]
[336823126,1725192573370,-504.08787951,0.0002582,2]
[336823127,1725192573390,-500.0,0.0002582,2]
[336823128,1725192573411,-500.0,0.0002582,2]
[336823129,1725192573432,-295.10379098,0.0002582,2]
[336823130,1725192573454,-500.0,0.0002582,2]
[336823131,1725192573474,-500.0,0.0002582,2]
[336823132,1725192573495,-1070.57,0.0002582,2]
[336823133,1725192573517,-501.64542158,0.0002582,2]
[336823134,1725192573537,-500.0,0.0002582,2]
[336823135,1725192573561,-500.0,0.0002582,2]
[336823136,1725192573582,-500.0,0.0002582,2]
[336823137,1725192573603,-603.14385645,0.0002582,2]
[336823138,1725192573623,-550.01,0.0002582,2]
[336823139,1725192573645,-506.4085577,0.0002582,2]
[336823140,1725192573666,-500.0,0.0002582,2]
[336823141,1725192573688,-594.2,0.0002582,2]
[336823142,1725192573709,-664.69,0.0002582,2]
[336823143,1725192573731,-500.0,0.0002582,2]
[336823144,1725192573752,-500.0,0.0002582,2]
[336823145,1725192573772,-500.0,0.0002582,2]
[336823146,1725192573802,-500.0,0.0002582,2]
[336823147,1725192573823,-504.85190653,0.0002582,2]
[336823148,1725192573845,-500.0,0.00025821,2]
[336823149,1725192573867,-500.0,0.00025821,2]
[336823150,1725192573888,-500.0,0.00025821,2]
[336823151,1725192573909,-500.0,0.00025821,2]
[336823152,1725192573931,-789.57,0.00025821,2]
[336823153,1725192573953,-500.0,0.00025821,2]
[336823154,1725192573975,-500.0,0.00025821,2]
[336823155,1725192574002,-500.0,0.00026073,2]
[336823156,1725192574024,-616.95080339,0.00026073,2]
[336823157,1725192574047,-8078.33957086,0.00026081,3]
[336823158,1725192574068,-8078.33957086,0.00026082,3]
[336823159,1725192574089,-8078.33957086,0.00026083,3]
[336823160,1725192574110,-500.0,0.00026083,2]
[336823161,1725192574132,-8078.33957086,0.00026085,3]
[336823162,1725192574154,-2132.33,0.0002609,2]
[336823163,1725192574175,-500.0,0.0002609,2]
[336823164,1725192574196,-500.0,0.0002609,2]
[336823165,1725192574217,-500.0,0.0002609,2]
[336823166,1725192574238,-2191.27,0.00026091,2]
[336823167,1725192574260,-1692.33,0.00026091,2]
[336823168,1725192574283,-1383.39,0.00026091,2]
[336823169,1725192574305,-514.75,0.00026091,2]
[336823170,1725192574327,-500.0,0.00026091,2]
[336823171,1725192574349,-1372.45,0.00026091,2]
[336823172,1725192574371,-649.86,0.00026091,2]
[336823173,1725192574393,-2082.74,0.00026091,2]
[336823174,1725192574416,-500.0,0.00026091,2]
[336823175,1725192574439,-12586.71,0.00026091,2]
[336823176,1725192574460,-2887.41,0.00026091,2]
[336823177,1725192574481,-689.77,0.00026091,2]
[336823178,1725192574502,-3325.33,0.00026091,2]
[336823179,1725192574524,-1584.26,0.00026091,2]
[336823180,1725192574546,-500.0,0.00026091,2]
[336823181,1725192574571,-604.73,0.00026091,2]
[336823182,1725192574592,-1027.88,0.00026091,2]
[336823183,1725192574767,-1132.07,0.00026091,2]
[336823184,1725192574790,-509.52,0.00026091,2]
[336823185,1725192574812,-500.0,0.00026091,2]
[336823186,1725192574835,-500.0,0.00026091,2]
[336823187,1725192574861,-500.0,0.00026091,2]
[336823188,1725192574884,-500.0,0.00026092,2]
[336823189,1725192574909,-500.0,0.00026092,2]
[336823190,1725192574931,-981.83,0.00026092,2]
[336823191,1725192574956,-500.0,0.00026092,2]
[336823192,1725192574979,-500.0,0.00026092,2]
[336823193,1725192575002,-550.78,0.00026092,2]
[336823194,1725192575025,-500.0,0.00026092,2]
[336823195,1725192575048,-740.94,0.00026092,2]
[336823196,1725192575071,-500.0,0.00026092,2]
[336823197,1725192575092,-500.0,0.00026092,2]
[336823198,1725192575113,-500.0,0.00026092,2]
[336823199,1725192575133,-885.34,0.00026092,2]
[336823200,1725192575153,-500.0,0.00026092,2]
[336823201,1725192575174,-500.0,0.00026092,2]
[336823202,1725192575195,-500.0,0.00026092,2]
[336823203,1725192575218,-658.94,0.00026092,2]
[336823204,1725192575240,-500.0,0.00026092,2]
[336823205,1725192575261,-1872.71,0.00026092,2]
[336823206,1725192575282,-500.0,0.00026092,2]
[336823207,1725192575303,-1123.43,0.00026092,2]
[336823208,1725192575323,-570.52,0.00026092,2]
[336823209,1725192575343,-500.0,0.00026092,2]
[336823210,1725192575364,-500.0,0.00026092,2]
[336823211,1725192575385,-502.06,0.00026092,2]
[336823212,1725192575405,-653.77,0.00026092,2]
[336823213,1725192575426,-500.0,0.00026092,2]
[336823214,1725192575446,-500.0,0.00026092,2]
[336823215,1725192575466,-1340.91,0.00026092,2]
[336823216,1725192575487,-1136.27,0.00026092,2]
[336823217,1725192575508,-500.0,0.00026092,2]
[336823218,1725192575529,-500.0,0.00026092,2]
[336823219,1725192575550,-500.0,0.00026092,2]
[336823220,1725192575575,-3161.41,0.00026092,2]
[336823221,1725192575597,-526.68886079,0.00026092,2]
[336823222,1725192575617,-500.0,0.00026092,2]
[336823223,1725192575639,-378.87,0.00026092,2]
[336823224,1725192575660,-500.0,0.00026092,2]
[336823225,1725192575683,-500.0,0.00026092,2]
[336823226,1725192575704,-526.73,0.00026092,2]
[336823227,1725192575725,-500.0,0.00026092,2]
[336823228,1725192575746,-1089.79,0.00026092,2]
[336823229,1725192575769,-500.0,0.00026092,2]
[336823230,1725192575791,-590.52,0.00026092,2]
[336823231,1725192575812,-500.0,0.00026092,2]
[336823232,1725192575837,-588.48,0.00026092,2]
[336823233,1725192575861,-1007.91,0.00026092,2]
[336823234,1725192575883,-1497.44,0.00026092,2]
[336823235,1725192575904,-500.0,0.00026092,2]
[336823236,1725192575929,-2694.9,0.00026092,2]
[336823237,1725192575957,-6376.52,0.00026092,2]
[336823238,1725192575978,-500.0,0.00026092,2]
[336823239,1725192576000,-574.38,0.00026092,2]
[336823240,1725192576027,-559.85,0.00026092,2]
[336823241,1725192576049,-1097.2,0.00026092,2]
[336823242,1725192576071,-500.0,0.00026093,2]
[336823243,1725192576095,-500.0,0.00026093,2]
[336823244,1725192576118,-620.27,0.00026093,2]
[336823245,1725192576140,-782.08,0.00026093,2]
[336823246,1725192576162,-610.98,0.00026093,2]
[336823247,1725192576183,-500.0,0.00026093,2]
[336823248,1725192576205,-500.0,0.00026093,2]
[336823249,1725192576227,-500.0,0.00026093,2]
[336823250,1725192576248,-622.73,0.00026093,2]
[336823251,1725192576269,-742.03,0.00026093,2]
[336823252,1725192576291,-500.0,0.00026093,2]
[336823253,1725192576312,-500.0,0.00026093,2]
[336823254,1725192576333,-473.71017254,0.00026093,2]
[336823255,1725192576354,-500.0,0.00026093,2]
[336823256,1725192576377,-500.0,0.00026093,2]
[336823257,1725192576397,-500.0,0.00026093,2]
[336823258,1725192576418,-899.31,0.00026093,2]
[336823259,1725192576439,-2416.89,0.00026093,2]
[336823260,1725192576464,-500.0,0.00026093,2]
[336823261,1725192576486,-500.0,0.00026093,2]
[336823262,1725192576506,-500.0,0.00026093,2]
[336823263,1725192576528,-500.0,0.00026093,2]
[336823264,1725192576549,-500.0,0.00026093,2]
[336823265,1725192576573,-1489.35,0.00026093,2]
[336823266,1725192576594,-775.25,0.00026093,2]
[336823267,1725192576616,-774.78,0.00026093,2]
[336823268,1725192576638,-500.0,0.00026093,2]
[336823269,1725192576660,-650.15,0.00026093,2]
[336823270,1725192576680,-823.45,0.00026093,2]
[336823271,1725192576701,-500.0,0.00026093,2]
[336823272,1725192576721,-638.47,0.00026093,2]
[336823273,1725192576742,-1562.51,0.00026093,2]
[336823274,1725192576763,-548.87,0.00026093,2]
[336823275,1725192576786,-567.23,0.00026093,2]
[336823276,1725192576808,-500.0,0.00026093,2]
[336823277,1725192576830,-1007.33,0.00026093,2]
[336823278,1725192576863,-640.88,0.00026093,2]
[336823279,1725192576885,-915.62,0.00026093,2]
[336823280,1725192576905,-500.0,0.00026094,2]
[336823281,1725192576926,-500.0,0.00026094,2]
[336823282,1725192576946,-500.0,0.00026094,2]
[336823283,1725192576966,-500.0,0.00026094,2]
[336823284,1725192576988,-500.0,0.00026094,2]
[336823285,1725192577011,-500.0,0.00026094,2]
[336823286,1725192577035,-500.0,0.00026094,2]
[336823287,1725192577056,-500.0,0.00026094,2]
[336823288,1725192577076,-500.0,0.00026094,2]
[336823289,1725192577097,-500.0,0.00026094,2]
[336823290,1725192577118,-500.0,0.00026094,2]
[336823291,1725192577141,-736.33,0.00026094,2]
[336823292,1725192577162,-500.0,0.00026094,2]
[336823293,1725192577184,-500.0,0.00026094,2]
[336823294,1725192577204,-510.03109359,0.00026094,2]
[336823295,1725192577225,-500.0,0.00026094,2]
[336823296,1725192577247,-622.79,0.00026094,2]
[336823297,1725192577271,-500.0,0.00026094,2]
[336823298,1725192577298,-859.61,0.00026094,2]
[336823299,1725192577319,-831.63,0.00026094,2]
[336823300,1725192577340,-500.0,0.00026094,2]
[336823301,1725192577362,-681.9,0.00026094,2]
[336823302,1725192577383,-500.0,0.00026094,2]
[336823303,1725192577406,-500.0,0.00026094,2]
[336823304,1725192577428,-500.0,0.00026094,2]
[336823305,1725192577450,-500.0,0.00026094,2]
[336823306,1725192577471,-500.0,0.00026094,2]
[336823307,1725192577492,-1070.57,0.00026094,2]
[336823308,1725192577513,-500.0,0.00026094,2]